fUSD/lending_fUSD_20240104
["ID","MTS","AMOUNT","RATE_DAILY","PERIOD"]
[310126562,1704376316740,-562.25,0.00035616,2]
[310126563,1704376316751,-500.0,0.00035616,2]
[310126564,1704376316761,-500.0,0.00035616,2]
[310126565,1704376316772,-500.0,0.00035616,2]
[310126566,1704376316784,-868.86,0.00035616,2]
[310126567,1704376316795,-202.85561594,0.00035616,2]
[310126568,1704376316806,-500.0,0.00035616,2]
[310126569,1704376316817,-500.0,0.00035616,2]
[310126570,1704376316828,-500.0,0.00035616,2]
[310126571,1704376316838,-500.0,0.00035616,2]
[310126572,1704376316849,-500.0,0.00035616,2]
[310126573,1704376316861,-528.23,0.00035616,2]
[310126574,1704376316872,-689.08,0.00035616,2]
[310126575,1704376316884,-1000.0,0.00035616,2]
[310126576,1704376316895,-609.72290333,0.00035616,2]
[310126577,1704376316908,-500.0,0.00035616,2]
[310126578,1704376316918,-500.0,0.00035616,2]
[310126579,1704376316927,-500.0,0.00035616,2]
[310126580,1704376316937,-819.39,0.00035616,2]
[310126581,1704376316947,-500.0,0.00035616,2]
[310126582,1704376316957,-501.43,0.00035616,2]
[310126583,1704376316967,-500.0,0.00035616,2]
[310126584,1704376316977,-500.0,0.00035616,2]
[310126585,1704376316988,-500.0,0.00035616,2]
[310126586,1704376316998,-659.39,0.00035616,2]
[310126587,1704376317008,-500.0,0.00035616,2]
[310126588,1704376317019,-500.0,0.00035616,2]
[310126589,1704376317028,-500.0,0.00035616,2]
[310126590,1704376317038,-500.0,0.00035616,2]
[310126591,1704376317048,-500.0,0.00035616,2]
[310126592,1704376317057,-500.0,0.00035616,2]
[310126593,1704376317067,-500.0,0.00035616,2]
[310126594,1704376317077,-500.0,0.00035616,2]
[310126595,1704376317086,-500.0,0.00035616,2]
[310126596,1704376317095,-500.0,0.00035616,2]
[310126597,1704376317105,-2553.32,0.00035616,2]
[310126598,1704376317118,-371.39750704,0.00035616,2]
[310126599,1704376317127,-500.0,0.00035616,2]
[310126600,1704376317136,-604.64,0.00035616,2]
[310126601,1704376317146,-500.0,0.00035616,2]
[310126602,1704376317155,-584.06,0.00035616,2]
[310126603,1704376317165,-681.98,0.00035616,2]
[310126604,1704376317174,-564.27,0.00035616,2]
[310126605,1704376317184,-500.0,0.00035616,2]
[310126606,1704376317194,-500.0,0.00035616,2]
[310126607,1704376317203,-500.0,0.00035616,2]
[310126608,1704376317212,-500.0,0.00035616,2]
[310126609,1704376317222,-500.0,0.00035616,2]
[310126610,1704376317231,-500.0,0.00035616,2]
[310126611,1704376317241,-817.16,0.00035616,2]
[310126612,1704376317250,-500.0,0.00035616,2]
[310126613,1704376317260,-3601.75,0.00035616,2]
[310126614,1704376317269,-500.0,0.00035616,2]
[310126615,1704376317279,-500.0,0.00035616,2]
[310126616,1704376317289,-500.0,0.00035616,2]
[310126617,1704376317298,-500.0,0.00035616,2]
[310126618,1704376317307,-500.0,0.00035616,2]
[310126619,1704376317317,-500.0,0.00035616,2]
[310126620,1704376317326,-255.48350651,0.00035616,2]
[310126621,1704376317336,-500.0,0.00035616,2]
[310126622,1704376317345,-717.82,0.00035616,2]
[310126623,1704376317355,-500.0,0.00035616,2]
[310126624,1704376317367,-669.95,0.00035616,2]
[310126625,1704376317377,-500.0,0.00035616,2]
[310126626,1704376317386,-500.0,0.00035616,2]
[310126627,1704376317396,-500.0,0.00035616,2]
[310126628,1704376317406,-500.0,0.00035616,2]
[310126629,1704376317415,-500.0,0.00035616,2]
[310126630,1704376317425,-591.79,0.00035616,2]
[310126631,1704376317435,-500.0,0.00035616,2]
[310126632,1704376317444,-500.0,0.00035616,2]
[310126633,1704376317454,-406.48,0.00035616,2]
[310126634,1704376317464,-500.0,0.00035616,2]
[310126635,1704376317475,-500.0,0.00035616,2]
[310126636,1704376317485,-500.0,0.00035616,2]
[310126637,1704376317495,-500.0,0.00035616,2]
[310126638,1704376317505,-342.19698317,0.00035616,2]
[310126639,1704376317514,-1654.56,0.00035616,2]
[310126640,1704376317524,-150.0,0.00035616,2]
[310126641,1704376317533,-500.0,0.00035616,2]
[310126642,1704376317543,-150.0,0.00035616,2]
[310126643,1704376317553,-150.0,0.00035616,2]
[310126644,1704376317563,-151.71381668,0.00035616,2]
[310126645,1704376317573,-384.20236386,0.00035616,2]
[310126646,1704376317582,-516.6,0.00035616,2]
[310126647,1704376317593,-500.0,0.00035616,2]
[310126648,1704376317602,-500.0,0.00035616,2]
[310126649,1704376317614,-519.53,0.00035616,2]
[310126650,1704376317623,-500.0,0.00035616,2]
[310126651,1704376317632,-1518.1,0.00035616,2]
[310126652,1704376317641,-844.17,0.00035616,2]
[310126653,1704376317650,-500.0,0.00035616,2]
[310126654,1704376317660,-500.0,0.00035616,2]
[310126655,1704376317670,-500.0,0.00035616,2]
[310126656,1704376317680,-1154.94,0.00035616,2]
[310126657,1704376317691,-500.0,0.00035616,2]
[310126658,1704376317701,-500.0,0.00035616,2]
[310126659,1704376317711,-500.0,0.00035616,2]
[310126660,1704376317721,-500.0,0.00035616,2]
[310126661,1704376317733,-462.08756451,0.00035616,2]
[310126662,1704376317742,-500.0,0.00035616,2]
[310126663,1704376317752,-685.93,0.00035616,2]
[310126664,1704376317761,-500.0,0.00035616,2]
[310126665,1704376317773,-500.0,0.00035616,2]
[310126666,1704376317782,-500.0,0.00035616,2]
[310126667,1704376317791,-500.0,0.00035616,2]
[310126668,1704376317802,-500.0,0.00035616,2]
[310126669,1704376317812,-732.57,0.00035616,2]
[310126670,1704376317822,-500.0,0.00035616,2]
[310126671,1704376317832,-500.0,0.00035616,2]
[310126672,1704376317842,-790.13,0.00035616,2]
[310126673,1704376317852,-828.91,0.00035616,2]
[310126674,1704376317863,-500.0,0.00035616,2]
[310126675,1704376317873,-500.0,0.00035616,2]
[310126676,1704376317883,-711.96,0.00035616,2]
[310126677,1704376317893,-536.01,0.00035616,2]
[310126678,1704376317903,-374.37896855,0.00035616,2]
[310126679,1704376317913,-500.0,0.00035616,2]
[310126680,1704376317924,-608.12,0.00035616,2]
[310126681,1704376317934,-4986.82,0.00035616,2]
[310126682,1704376317944,-500.0,0.00035616,2]
[310126683,1704376317954,-866.33,0.00035616,2]
[310126684,1704376317964,-2106.08,0.00035616,2]
[310126685,1704376317974,-500.0,0.00035616,2]
[310126686,1704376317984,-281.15527282,0.00035616,2]
[310126687,1704376317995,-500.0,0.00035616,2]
[310126688,1704376318006,-500.0,0.00035616,2]
[310126689,1704376318016,-2265.71,0.00035616,2]
[310126690,1704376318026,-767.02,0.00035616,2]
[310126691,1704376318037,-500.0,0.00035616,2]
[310126692,1704376318048,-202.62254841,0.00035616,2]
[310126693,1704376318058,-1141.21,0.00035616,2]
[310126694,1704376318069,-500.0,0.00035616,2]
[310126695,1704376318080,-500.0,0.00035616,2]
[310126696,1704376318090,-500.0,0.00035616,2]
[310126697,1704376318102,-855.1,0.00035616,2]
[310126698,1704376318116,-616.17,0.00035616,2]
[310126699,1704376318126,-500.0,0.00035616,2]
[310126700,1704376318136,-500.0,0.00035616,2]
[310126701,1704376318146,-500.0,0.00035616,2]
[310126702,1704376318156,-500.0,0.00035616,2]
[310126703,1704376318166,-500.0,0.00035616,2]
[310126704,1704376318176,-500.0,0.00035616,2]
[310126705,1704376318186,-1115.17,0.00035616,2]
[310126706,1704376318196,-500.0,0.00035616,2]
[310126707,1704376318207,-500.0,0.00035616,2]
[310126708,1704376318216,-500.0,0.00035616,2]
[310126709,1704376318226,-3455.17,0.00035616,2]
[310126710,1704376318236,-500.0,0.00035616,2]
[310126711,1704376318246,-3050.39,0.00035616,2]
[310126712,1704376318256,-1355.05,0.00035616,2]
[310126713,1704376318266,-926.09,0.00035616,2]
[310126714,1704376318276,-500.0,0.00035616,2]
[310126715,1704376318286,-500.0,0.00035616,2]
[310126716,1704376318296,-3332.3,0.00035616,2]
[310126717,1704376318305,-500.0,0.00035616,2]
[310126718,1704376318315,-500.0,0.00035616,2]
[310126719,1704376318324,-622.83,0.00035616,2]
[310126720,1704376318335,-500.0,0.00035616,2]
[310126721,1704376318345,-2331.02,0.00035616,2]
[310126722,1704376318354,-500.0,0.00035616,2]
[310126723,1704376318368,-660.0,0.00035616,2]
[310126724,1704376318377,-500.0,0.00035616,2]
[310126725,1704376318387,-361.81619321,0.00035616,2]
[310126726,1704376318397,-500.0,0.00035616,2]
[310126727,1704376318407,-500.0,0.00035616,2]
[310126728,1704376318417,-661.88,0.00035616,2]
[310126729,1704376318426,-500.0,0.00035616,2]
[310126730,1704376318435,-500.0,0.00035616,2]
[310126731,1704376318445,-2608.4,0.00035616,2]
[310126732,1704376318455,-500.0,0.00035616,2]
[310126733,1704376318464,-1494.03,0.00035616,2]
[310126734,1704376318475,-1463.43,0.00035616,2]
[310126735,1704376318485,-500.0,0.00035616,2]
[310126736,1704376318495,-1043.9,0.00035616,2]
[310126737,1704376318504,-598.95,0.00035616,2]
[310126738,1704376318514,-1024.71,0.00035616,2]
[310126739,1704376318524,-500.0,0.00035616,2]
[310126740,1704376318534,-500.0,0.00035616,2]
[310126741,1704376318544,-609.43,0.00035616,2]
[310126742,1704376318554,-1321.13,0.00035616,2]
[310126743,1704376318564,-1809.81,0.00035616,2]
[310126744,1704376318574,-741.24,0.00035616,2]
[310126745,1704376318583,-955.44,0.00035616,2]
[310126746,1704376318593,-1179.95,0.00035616,2]
[310126747,1704376318605,-568.4,0.00035616,2]
[310126748,1704376318617,-824.39,0.00035616,2]
[310126749,1704376318627,-896.64,0.00035616,2]
[310126750,1704376318638,-500.0,0.00035616,2]
[310126751,1704376318647,-745.04,0.00035616,2]
[310126752,1704376318657,-673.43,0.00035616,2]
[310126753,1704376318667,-780.4,0.00035616,2]
[310126754,1704376318676,-537.65,0.00035616,2]
[310126755,1704376318686,-1236.0,0.00035616,2]
[310126756,1704376318696,-617.64223387,0.00035616,2]
[310126757,1704376318706,-642.93,0.00035616,2]
[310126758,1704376318716,-837.04,0.00035616,2]
[310126759,1704376318726,-1050.16,0.00035616,2]
[310126760,1704376318735,-500.0,0.00035616,2]
[310126761,1704376318745,-969.09,0.00035616,2]
[310126762,1704376318755,-500.0,0.00035616,2]
[310126763,1704376318765,-626.59,0.00035616,2]
[310126764,1704376318774,-532.7,0.00035616,2]
[310126765,1704376318784,-500.0,0.00035616,2]
[310126766,1704376318793,-517.15,0.00035616,2]
[310126767,1704376318803,-976.99,0.00035616,2]
[310126768,1704376318814,-833.15,0.00035616,2]
[310126769,1704376318824,-500.0,0.00035616,2]
[310126770,1704376318833,-500.0,0.00035616,2]
[310126771,1704376318843,-517.44,0.00035616,2]
[310126772,1704376318853,-442.18688581,0.00035616,2]
[310126773,1704376318863,-588.23,0.00035616,2]
[310126774,1704376318873,-2663.85,0.00035616,2]
[310126775,1704376318882,-524.48,0.00035616,2]
[310126776,1704376318891,-762.82,0.00035616,2]
[310126777,1704376318902,-3366.34,0.00035616,2]
[310126778,1704376318912,-516.2,0.00035616,2]
[310126779,1704376318922,-7010.51,0.00035616,2]
[310126780,1704376318931,-500.0,0.00035616,2]
[310126781,1704376318941,-500.0,0.00035616,2]
[310126782,1704376318950,-500.0,0.00035616,2]
[310126783,1704376318959,-864.34,0.00035616,2]
[310126784,1704376318969,-150.0,0.00035616,2]
[310126785,1704376318978,-3059.44,0.00035616,2]
[310126786,1704376318988,-206.0,0.00035636,11]
[310126787,1704376318999,-150.0,0.00035639,2]
[310126788,1704376319009,-163.547368,0.00035641,2]
[310126789,1704376319019,-163.547368,0.00035641,2]
[310126790,1704376319028,-209.0,0.0003566,2]
[310126791,1704376319038,-207.0,0.0003566,2]
[310126792,1704376319048,-151.3449159,0.00035663,14]
[310126793,1704376319058,-151.36920844,0.00035671,14]
[310126794,1704376319068,-420.61578195,0.0003568,14]
[310126795,1704376319078,-8560.72,0.000357,7]
[310126796,1704376319088,-36636.41,0.000357,7]
[310126797,1704376319098,-62201.05,0.000357,7]
[310126798,1704376319109,-281.54632321,0.000357,7]
[310126799,1704376319118,-168.16466333,0.00035701,14]
[310126800,1704376319129,-151.76501899,0.00035744,14]
[310126801,1704376319138,-153.66,0.00035777,2]
[310126802,1704376319148,-151.76501899,0.00035778,14]
[310126803,1704376319159,-1996.84,0.0003578,2]
[310126804,1704376319169,-163.86472935,0.00035783,14]
[310126805,1704376319179,-500.0,0.00035784,2]
[310126806,1704376319189,-10000.0,0.00035798,2]
[310126807,1704376319199,-157.40104,0.00035798,2]
[310126808,1704376319209,-300.0,0.000358,9]
[310126809,1704376319219,-2922.09,0.00035828,7]
[310126810,1704376319229,-2922.09,0.00035828,7]
[310126811,1704376319238,-151.3449159,0.00035833,14]
[310126812,1704376319249,-151.36920844,0.00035873,14]
[310126813,1704376319259,-164.39947047,0.00035883,14]
[310126814,1704376319270,-153.08,0.00035888,2]
[310126815,1704376319280,-1105.69,0.0003589,2]
[310126816,1704376319290,-500.0,0.0003589,2]
[310126817,1704376319301,-500.0,0.0003589,2]
[310126818,1704376319311,-550.1,0.0003589,2]
[310126819,1704376319321,-500.0,0.0003589,2]
[310126820,1704376319331,-500.0,0.0003589,2]
[310126821,1704376319341,-445.35780778,0.0003589,2]
[310126822,1704376319351,-500.0,0.0003589,2]
[310126823,1704376319362,-500.0,0.0003589,2]
[310126824,1704376319372,-688.97,0.0003589,2]
[310126825,1704376319382,-755.75,0.0003589,2]
[310126826,1704376319392,-1506.91,0.0003589,2]
[310126827,1704376319402,-300.34198136,0.0003589,2]
[310126828,1704376319412,-500.0,0.0003589,2]
[310126829,1704376319422,-872.68,0.0003589,2]
[310126830,1704376319432,-500.0,0.0003589,2]
[310126831,1704376319442,-1266.42,0.0003589,2]
[310126832,1704376319451,-500.0,0.0003589,2]
[310126833,1704376319462,-500.0,0.0003589,2]
[310126834,1704376319473,-1122.66,0.0003589,2]
[310126835,1704376319484,-500.0,0.0003589,2]
[310126836,1704376319495,-617.32209853,0.0003589,2]
[310126837,1704376319505,-500.0,0.0003589,2]
[310126838,1704376319516,-683.22,0.0003589,2]
[310126839,1704376319526,-500.0,0.0003589,2]
[310126840,1704376319536,-500.0,0.0003589,2]
[310126841,1704376319546,-464.70914681,0.0003589,2]
[310126842,1704376319557,-559.7,0.0003589,2]
[310126843,1704376319566,-500.0,0.0003589,2]
[310126844,1704376319577,-500.0,0.0003589,2]
[310126845,1704376319586,-500.0,0.0003589,2]
[310126846,1704376319596,-500.0,0.0003589,2]
[310126847,1704376319610,-500.0,0.0003589,2]
[310126848,1704376319620,-560.81634263,0.0003589,2]
[310126849,1704376319630,-500.0,0.0003589,2]
[310126850,1704376319641,-1749.13,0.0003589,2]
[310126851,1704376319650,-503.48,0.0003589,2]
[310126852,1704376319661,-500.0,0.0003589,2]
[310126853,1704376319671,-500.0,0.0003589,2]
[310126854,1704376319681,-500.0,0.0003589,2]
[310126855,1704376319690,-576.58385555,0.0003589,2]
[310126856,1704376319700,-562.25,0.0003589,2]
[310126857,1704376319711,-500.0,0.0003589,2]
[310126858,1704376319721,-500.0,0.0003589,2]
[310126859,1704376319734,-500.0,0.0003589,2]
[310126860,1704376319744,-868.86,0.0003589,2]
[310126861,1704376319755,-500.0,0.0003589,2]
[310126862,1704376319764,-500.0,0.0003589,2]
[310126863,1704376319775,-500.0,0.0003589,2]
[310126864,1704376319785,-500.0,0.0003589,2]
[310126865,1704376319795,-500.0,0.0003589,2]
[310126866,1704376319805,-689.08,0.0003589,2]
[310126867,1704376319815,-1000.0,0.0003589,2]
[310126868,1704376319825,-528.23,0.0003589,2]
[310126869,1704376319836,-649.43456039,0.0003589,2]
[310126870,1704376319846,-500.0,0.0003589,2]
[310126871,1704376319856,-500.0,0.0003589,2]
[310126872,1704376319866,-819.39,0.0003589,2]
[310126873,1704376319877,-500.0,0.0003589,2]
[310126874,1704376319887,-501.43,0.0003589,2]
[310126875,1704376319897,-500.0,0.0003589,2]
[310126876,1704376319907,-338.8,0.0003589,2]
[310126877,1704376319917,-500.0,0.0003589,2]
[310126878,1704376319927,-659.39,0.0003589,2]
[310126879,1704376319938,-500.0,0.0003589,2]
[310126880,1704376319948,-500.0,0.0003589,2]
[310126881,1704376319959,-176.61204379,0.0003589,2]
[310126882,1704376319969,-500.0,0.0003589,2]
[310126883,1704376319978,-500.0,0.0003589,2]
[310126884,1704376319988,-500.0,0.0003589,2]
[310126885,1704376319998,-500.0,0.0003589,2]
[310126886,1704376320008,-500.0,0.0003589,2]
[310126887,1704376320019,-570.35291216,0.0003589,2]
[310126888,1704376320029,-2553.32,0.0003589,2]
[310126889,1704376320039,-500.0,0.0003589,2]
[310126890,1704376320049,-604.64,0.0003589,2]
[310126891,1704376320059,-500.0,0.0003589,2]
[310126892,1704376320069,-584.06,0.0003589,2]
[310126893,1704376320080,-681.98,0.0003589,2]
[310126894,1704376320090,-564.27,0.0003589,2]
[310126895,1704376320100,-500.0,0.0003589,2]
[310126896,1704376320111,-500.0,0.0003589,2]
[310126897,1704376320121,-500.0,0.0003589,2]
[310126898,1704376320131,-609.5964381,0.0003589,2]
[310126899,1704376320142,-500.0,0.0003589,2]
[310126900,1704376320151,-500.0,0.0003589,2]
[310126901,1704376320161,-817.16,0.0003589,2]
[310126902,1704376320171,-500.0,0.0003589,2]
[310126903,1704376320181,-3601.75,0.0003589,2]
[310126904,1704376320191,-500.0,0.0003589,2]
[310126905,1704376320201,-500.0,0.0003589,2]
[310126906,1704376320381,-500.0,0.0003589,2]
[310126907,1704376320390,-500.0,0.0003589,2]
[310126908,1704376320400,-500.0,0.0003589,2]
[310126909,1704376320410,-500.0,0.0003589,2]
[310126910,1704376320420,-500.0,0.0003589,2]
[310126911,1704376320430,-717.82,0.0003589,2]
[310126912,1704376320440,-150.08372657,0.0003589,2]
[310126913,1704376320450,-669.95,0.0003589,2]
[310126914,1704376320460,-567.49291977,0.0003589,2]
[310126915,1704376320470,-500.0,0.0003589,2]
[310126916,1704376320481,-500.0,0.0003589,2]
[310126917,1704376320491,-500.0,0.0003589,2]
[310126918,1704376320501,-238.60084748,0.0003589,2]
[310126919,1704376320510,-591.79,0.0003589,2]
[310126920,1704376320520,-500.0,0.0003589,2]
[310126921,1704376320529,-500.0,0.0003589,2]
[310126922,1704376320540,-406.48,0.0003589,2]
[310126923,1704376320549,-500.0,0.0003589,2]
[310126924,1704376320559,-500.0,0.0003589,2]
[310126925,1704376320569,-500.0,0.0003589,2]
[310126926,1704376320578,-500.0,0.0003589,2]
[310126927,1704376320588,-1654.56,0.0003589,2]
[310126928,1704376320597,-605.68914954,0.0003589,2]
[310126929,1704376320608,-516.6,0.0003589,2]
[310126930,1704376320618,-500.0,0.0003589,2]
[310126931,1704376320628,-500.0,0.0003589,2]
[310126932,1704376320637,-519.53,0.0003589,2]
[310126933,1704376320647,-500.0,0.0003589,2]
[310126934,1704376320656,-1518.1,0.0003589,2]
[310126935,1704376320666,-844.17,0.0003589,2]
[310126936,1704376320676,-500.0,0.0003589,2]
[310126937,1704376320685,-500.0,0.0003589,2]
[310126938,1704376320695,-500.0,0.0003589,2]
[310126939,1704376320704,-1154.94,0.0003589,2]
[310126940,1704376320715,-500.0,0.0003589,2]
[310126941,1704376320725,-590.67727261,0.0003589,2]
[310126942,1704376320735,-500.0,0.0003589,2]
[310126943,1704376320744,-500.0,0.0003589,2]
[310126944,1704376320754,-500.0,0.0003589,2]
[310126945,1704376320763,-685.93,0.0003589,2]
[310126946,1704376320772,-500.0,0.0003589,2]
[310126947,1704376320782,-500.0,0.0003589,2]
[310126948,1704376320790,-500.0,0.0003589,2]
[310126949,1704376320800,-500.0,0.0003589,2]
[310126950,1704376320810,-610.82665197,0.0003589,2]
[310126951,1704376320819,-732.57,0.0003589,2]
[310126952,1704376320829,-500.0,0.0003589,2]
[310126953,1704376320839,-500.0,0.0003589,2]
[310126954,1704376320849,-790.13,0.0003589,2]
[310126955,1704376320858,-828.91,0.0003589,2]
[310126956,1704376320868,-500.0,0.0003589,2]
[310126957,1704376320877,-500.0,0.0003589,2]
[310126958,1704376320887,-711.96,0.0003589,2]
[310126959,1704376320896,-536.01,0.0003589,2]
[310126960,1704376320905,-294.29028647,0.0003589,2]
[310126961,1704376320914,-608.12,0.0003589,2]
[310126962,1704376320924,-4986.82,0.0003589,2]
[310126963,1704376320934,-500.0,0.0003589,2]
[310126964,1704376320943,-866.33,0.0003589,2]
[310126965,1704376320953,-2106.08,0.0003589,2]
[310126966,1704376320962,-500.0,0.0003589,2]
[310126967,1704376320972,-500.0,0.0003589,2]
[310126968,1704376320981,-2265.71,0.0003589,2]
[310126969,1704376320991,-500.0,0.0003589,2]
[310126970,1704376321001,-767.02,0.0003589,2]
[310126971,1704376321010,-500.0,0.0003589,2]
[310126972,1704376321020,-1141.21,0.0003589,2]
[310126973,1704376321029,-398.81820885,0.0003589,2]
[310126974,1704376321038,-500.0,0.0003589,2]
[310126975,1704376321049,-500.0,0.0003589,2]
[310126976,1704376321059,-855.1,0.0003589,2]
[310126977,1704376321068,-616.17,0.0003589,2]
[310126978,1704376321078,-500.0,0.0003589,2]
[310126979,1704376321087,-563.99540286,0.0003589,2]
[310126980,1704376321097,-500.0,0.0003589,2]
[310126981,1704376321106,-500.0,0.0003589,2]
[310126982,1704376321116,-500.0,0.0003589,2]
[310126983,1704376321124,-344.33033392,0.0003589,2]
[310126984,1704376321134,-1115.17,0.0003589,2]
[310126985,1704376321143,-500.0,0.0003589,2]
[310126986,1704376321152,-522.36832287,0.0003589,2]
[310126987,1704376321162,-267.81813248,0.0003589,2]
[310126988,1704376321172,-3455.17,0.0003589,2]
[310126989,1704376321181,-474.93919425,0.0003589,2]
[310126990,1704376321191,-1355.05,0.0003589,2]
[310126991,1704376321201,-3050.39,0.0003589,2]
[310126992,1704376321210,-926.09,0.0003589,2]
[310126993,1704376321220,-500.0,0.0003589,2]
[310126994,1704376321230,-500.0,0.0003589,2]
[310126995,1704376321239,-3332.3,0.0003589,2]
[310126996,1704376321249,-228.56126063,0.0003589,2]
[310126997,1704376321262,-500.0,0.0003589,2]
[310126998,1704376321273,-622.83,0.0003589,2]
[310126999,1704376321283,-500.0,0.0003589,2]
[310127000,1704376321293,-2331.02,0.0003589,2]
[310127001,1704376321303,-500.0,0.0003589,2]
[310127002,1704376321313,-660.0,0.0003589,2]
[310127003,1704376321322,-500.0,0.0003589,2]
[310127004,1704376321332,-500.0,0.0003589,2]
[310127005,1704376321342,-500.0,0.0003589,2]
[310127006,1704376321353,-661.88,0.0003589,2]
[310127007,1704376321363,-500.0,0.0003589,2]
[310127008,1704376321373,-500.0,0.0003589,2]
[310127009,1704376321383,-2608.4,0.0003589,2]
[310127010,1704376321393,-500.0,0.0003589,2]
[310127011,1704376321403,-1494.03,0.0003589,2]
[310127012,1704376321413,-1463.43,0.0003589,2]
[310127013,1704376321422,-500.0,0.0003589,2]
[310127014,1704376321432,-1043.9,0.0003589,2]
[310127015,1704376321442,-598.95,0.0003589,2]
[310127016,1704376321451,-1024.71,0.0003589,2]
[310127017,1704376321462,-500.0,0.0003589,2]
[310127018,1704376321474,-500.0,0.0003589,2]
[310127019,1704376321484,-609.43,0.0003589,2]
[310127020,1704376321495,-1321.13,0.0003589,2]
[310127021,1704376321505,-1809.81,0.0003589,2]
[310127022,1704376321515,-741.24,0.0003589,2]
[310127023,1704376321524,-955.44,0.0003589,2]
[310127024,1704376321534,-1179.95,0.0003589,2]
[310127025,1704376321544,-568.4,0.0003589,2]
[310127026,1704376321553,-824.39,0.0003589,2]
[310127027,1704376321563,-896.64,0.0003589,2]
[310127028,1704376321572,-500.0,0.0003589,2]
[310127029,1704376321581,-745.04,0.0003589,2]
[310127030,1704376321591,-673.43,0.0003589,2]
[310127031,1704376321601,-780.4,0.0003589,2]
[310127032,1704376321611,-537.65,0.0003589,2]
[310127033,1704376321620,-1236.0,0.0003589,2]
[310127034,1704376321630,-642.93,0.0003589,2]
[310127035,1704376321640,-837.04,0.0003589,2]
[310127036,1704376321649,-1050.16,0.0003589,2]
[310127037,1704376321659,-500.0,0.0003589,2]
[310127038,1704376321669,-969.09,0.0003589,2]
[310127039,1704376321679,-500.0,0.0003589,2]
[310127040,1704376321689,-626.59,0.0003589,2]
[310127041,1704376321699,-532.7,0.0003589,2]
[310127042,1704376321709,-500.0,0.0003589,2]
[310127043,1704376321720,-517.15,0.0003589,2]
[310127044,1704376321730,-976.99,0.0003589,2]
[310127045,1704376321741,-833.15,0.0003589,2]
[310127046,1704376321751,-500.0,0.0003589,2]
[310127047,1704376321762,-500.0,0.0003589,2]
[310127048,1704376321771,-517.44,0.0003589,2]
[310127049,1704376321781,-588.23,0.0003589,2]
[310127050,1704376321793,-2663.85,0.0003589,2]
[310127051,1704376321805,-524.48,0.0003589,2]
[310127052,1704376321815,-762.82,0.0003589,2]
[310127053,1704376321825,-3366.34,0.0003589,2]
[310127054,1704376321836,-516.2,0.0003589,2]
[310127055,1704376321846,-7010.51,0.0003589,2]
[310127056,1704376321855,-500.0,0.0003589,2]
[310127057,1704376321867,-500.0,0.0003589,2]
[310127058,1704376321877,-500.0,0.0003589,2]
[310127059,1704376321887,-864.34,0.0003589,2]
[310127060,1704376321898,-151.76501899,0.00035892,14]
[310127061,1704376321907,-264.05954869,0.000359,4]